[Event "Snabbschacks-SM 2025"]
[Site "Norrköping, Sweden"]
[Date "2025.09.27"]
[Round "4.3"]
[White "Smith, Axel"]
[Black "Fors, Klas"]
[Result "1/2-1/2"]
[TimeControl "25 min + 10 sec/move"]
[WhiteTitle "GM"]
[WhiteElo "2431"]
[BlackElo "2063"]

1. c4 {[%clk 00:25:19]} c5 {[%clk 00:25:16]} {[%emt 00:00:04]} 2. Nf3 {[%clk
00:25:27]} {[%emt 00:00:02]} Nc6 {[%clk 00:25:25]} {[%emt 00:00:02]} 3. d4
{[%clk 00:25:36]} cxd4 {[%clk 00:25:32]} {[%emt 00:00:03]} 4. Nxd4 {[%clk
00:25:45]} {[%emt 00:00:02]} Nf6 {[%clk 00:25:39]} {[%emt 00:00:03]} 5. Nc3
{[%clk 00:25:45]} {[%emt 00:00:10]} g6 {[%clk 00:25:35]} {[%emt 00:00:14]} 6.
e4 {[%clk 00:25:42]} {[%emt 00:00:13]} d6 {[%clk 00:25:37]} {[%emt 00:00:08]} 7.
Be2 {[%clk 00:25:37]} {[%emt 00:00:15]} Bg7 {[%clk 00:25:43]} {[%emt 00:00:04]}
8. Be3 {[%clk 00:25:44]} {[%emt 00:00:03]} O-O {[%clk 00:25:42]} {[%emt
00:00:11]} 9. O-O {[%clk 00:25:51]} {[%emt 00:00:03]} Nxd4 {[%clk 00:20:35]}
{[%emt 00:05:16]} 10. Bxd4 {[%clk 00:25:59]} {[%emt 00:00:03]} a6 {[%clk
00:18:55]} {[%emt 00:01:50]} 11. Qc2 {[%clk 00:20:24]} {[%emt 00:05:45]} Be6
{[%clk 00:18:48]} {[%emt 00:00:17]} 12. Rfd1 {[%clk 00:19:07]} {[%emt
00:01:27]} Qc7 {[%clk 00:18:39]} {[%emt 00:00:19]} 13. b3 {[%clk 00:16:09]}
{[%emt 00:03:09]} Nd7 {[%clk 00:14:14]} {[%emt 00:04:35]} 14. Bxg7 {[%clk
00:16:12]} {[%emt 00:00:07]} Kxg7 {[%clk 00:14:22]} {[%emt 00:00:01]} 15. Rac1
{[%clk 00:16:03]} {[%emt 00:00:19]} Rac8 {[%clk 00:13:59]} {[%emt 00:00:32]} 16.
h3 {[%clk 00:15:50]} {[%emt 00:00:23]} Nf6 {[%clk 00:13:34]} {[%emt 00:00:36]}
17. Qd2 {[%clk 00:14:57]} {[%emt 00:01:03]} Qa5 {[%clk 00:12:43]} {[%emt
00:01:01]} 18. Qd4 {[%clk 00:12:34]} {[%emt 00:02:33]} Qc5 {[%clk 00:12:37]}
{[%emt 00:00:16]} 19. f3 {[%clk 00:11:23]} {[%emt 00:01:21]} Qxd4+ {[%clk
00:12:36]} {[%emt 00:00:12]} 20. Rxd4 {[%clk 00:11:32]} g5 {[%clk 00:10:22]}
{[%emt 00:02:23]} 21. Rdd1 {[%clk 00:09:22]} {[%emt 00:02:19]} h5 {[%clk
00:09:12]} {[%emt 00:01:21]} 22. Bd3 {[%clk 00:06:46]} {[%emt 00:02:46]} Kh6
{[%clk 00:06:10]} {[%emt 00:03:12]} 23. Kf2 {[%clk 00:06:48]} {[%emt 00:00:09]}
h4 {[%clk 00:06:08]} {[%emt 00:00:11]} 24. Re1 {[%clk 00:06:35]} {[%emt
00:00:23]} Nh5 {[%clk 00:05:57]} {[%emt 00:00:21]} 25. e5 {[%clk 00:04:26]}
{[%emt 00:02:20]} Rcd8 {[%clk 00:05:12]} {[%emt 00:00:55]} 26. exd6 {[%clk
00:02:54]} {[%emt 00:01:42]} Rxd6 {[%clk 00:05:19]} {[%emt 00:00:03]} 27. Be4
{[%clk 00:02:46]} {[%emt 00:00:19]} b6 {[%clk 00:04:59]} {[%emt 00:00:29]} 28.
Red1 {[%clk 00:02:37]} {[%emt 00:00:19]} Rfd8 {[%clk 00:05:06]} {[%emt
00:00:03]} 29. Rxd6 {[%clk 00:02:39]} {[%emt 00:00:09]} Rxd6 {[%clk 00:05:14]}
{[%emt 00:00:01]} 30. Rd1 {[%clk 00:02:48]} Rxd1 {[%clk 00:04:43]} {[%emt
00:00:41]} 31. Nxd1 {[%clk 00:02:58]} {[%emt 00:00:02]} Nf4 {[%clk 00:04:35]}
{[%emt 00:00:17]} 32. Nc3 {[%clk 00:03:02]} {[%emt 00:00:06]} Bc8 {[%clk
00:04:30]} {[%emt 00:00:15]} 33. b4 {[%clk 00:02:24]} {[%emt 00:00:50]} Be6
{[%clk 00:04:27]} {[%emt 00:00:13]} 34. c5 {[%clk 00:02:24]} {[%emt 00:00:10]}
bxc5 {[%clk 00:04:21]} {[%emt 00:00:15]} 35. bxc5 {[%clk 00:02:34]} f5 {[%clk
00:04:20]} {[%emt 00:00:11]} 36. Bc2 {[%clk 00:02:31]} {[%emt 00:00:13]} Bd7
{[%clk 00:04:02]} {[%emt 00:00:28]} 37. c6 {[%clk 00:00:44]} {[%emt 00:01:57]}
Bxc6 {[%clk 00:03:54]} {[%emt 00:00:19]} 38. Bxf5 {[%clk 00:00:53]} Kg7 {[%clk
00:03:53]} {[%emt 00:00:10]} 39. Be4 {[%clk 00:00:55]} {[%emt 00:00:09]} Bd7
{[%clk 00:03:56]} {[%emt 00:00:07]} 40. Ne2 {[%clk 00:00:24]} {[%emt 00:00:41]}
Nxe2 41. Kxe2 {[%clk 00:00:33]} Kf6 {[%clk 00:04:02]} {[%emt 00:00:02]} 42. Ke3
{[%clk 00:00:38]} {[%emt 00:00:05]} Ke5 {[%clk 00:04:08]} {[%emt 00:00:03]} 43.
Bd3 {[%clk 00:00:46]} {[%emt 00:00:03]} a5 {[%clk 00:04:13]} {[%emt 00:00:05]}
1/2-1/2

[Event "Snabbschacks-SM 2025"]
[Site "Norrköping, Sweden"]
[Date "2025.09.27"]
[Round "5.9"]
[White "Rogoz, Vladyslav"]
[Black "Wickstrom, Carina"]
[Result "1-0"]
[TimeControl "25 min + 10 sec/move"]
[WhiteElo "2108"]
[BlackElo "1921"]

1. d4 {[%clk 00:25:18]} d5 {[%clk 00:25:19]} {[%emt 00:00:01]} 2. c4 {[%clk
00:25:27]} {[%emt 00:00:01]} c6 {[%clk 00:25:28]} 3. Nf3 {[%clk 00:25:35]}
{[%emt 00:00:02]} Nf6 {[%clk 00:25:37]} 4. Nc3 {[%clk 00:25:44]} {[%emt
00:00:01]} dxc4 {[%clk 00:25:46]} {[%emt 00:00:01]} 5. g3 {[%clk 00:25:52]}
{[%emt 00:00:02]} b5 {[%clk 00:25:34]} {[%emt 00:00:22]} 6. Bg2 {[%clk
00:26:01]} {[%emt 00:00:01]} Bb7 {[%clk 00:23:10]} {[%emt 00:02:34]} 7. Ne5
{[%clk 00:26:06]} {[%emt 00:00:04]} Nd5 {[%clk 00:23:02]} {[%emt 00:00:19]} 8.
O-O {[%clk 00:25:36]} {[%emt 00:00:40]} e6 {[%clk 00:22:51]} {[%emt 00:00:21]}
9. a4 {[%clk 00:25:30]} {[%emt 00:00:16]} Qc8 {[%clk 00:21:21]} {[%emt
00:01:39]} 10. e4 {[%clk 00:25:30]} {[%emt 00:00:10]} Nxc3 {[%clk 00:21:12]}
{[%emt 00:00:20]} 11. bxc3 {[%clk 00:25:38]} {[%emt 00:00:02]} Nd7 {[%clk
00:20:43]} {[%emt 00:00:39]} 12. f4 {[%clk 00:25:27]} {[%emt 00:00:20]} Be7
{[%clk 00:20:10]} {[%emt 00:00:43]} 13. f5 {[%clk 00:24:53]} {[%emt 00:00:44]}
exf5 {[%clk 00:18:55]} {[%emt 00:01:26]} 14. exf5 {[%clk 00:24:26]} {[%emt
00:00:37]} O-O {[%clk 00:18:23]} {[%emt 00:00:43]} 15. Qf3 {[%clk 00:23:33]}
{[%emt 00:01:02]} Bf6 {[%clk 00:15:19]} {[%emt 00:03:14]} 16. axb5 {[%clk
00:22:58]} {[%emt 00:00:45]} Bxe5 {[%clk 00:15:16]} {[%emt 00:00:13]} 17. bxc6
{[%clk 00:23:03]} {[%emt 00:00:05]} Bxc6 {[%clk 00:08:42]} {[%emt 00:06:45]} 18.
Qxc6 {[%clk 00:23:09]} {[%emt 00:00:03]} Bc7 {[%clk 00:06:30]} {[%emt
00:02:22]} 19. Ba3 {[%clk 00:22:22]} {[%emt 00:00:56]} Re8 {[%clk 00:06:13]}
{[%emt 00:00:28]} 20. Qxa8 {[%clk 00:22:23]} {[%emt 00:00:09]} Qxa8 {[%clk
00:06:19]} {[%emt 00:00:04]} 21. Bxa8 {[%clk 00:22:31]} {[%emt 00:00:02]} Rxa8
{[%clk 00:06:22]} {[%emt 00:00:07]} 22. Rfe1 {[%clk 00:22:34]} {[%emt
00:00:07]} Nf6 {[%clk 00:05:03]} {[%emt 00:01:30]} 23. Bc5 {[%clk 00:22:24]}
{[%emt 00:00:19]} a5 {[%clk 00:04:52]} {[%emt 00:00:22]} 24. Ra4 {[%clk
00:22:03]} {[%emt 00:00:30]} Nd5 {[%clk 00:04:07]} {[%emt 00:00:55]} 25. Rxc4
{[%clk 00:21:52]} {[%emt 00:00:21]} h5 {[%clk 00:03:45]} {[%emt 00:00:33]} 26.
Kf2 {[%clk 00:21:44]} {[%emt 00:00:16]} h4 {[%clk 00:03:48]} {[%emt 00:00:08]}
27. Ba3 {[%clk 00:21:25]} {[%emt 00:00:29]} Bb6 {[%clk 00:03:15]} {[%emt
00:00:42]} 28. Rc6 {[%clk 00:21:21]} {[%emt 00:00:14]} Rb8 {[%clk 00:03:10]}
{[%emt 00:00:16]} 29. Kf3 {[%clk 00:20:48]} {[%emt 00:00:43]} Ba7 {[%clk
00:02:25]} {[%emt 00:00:55]} 30. Re5 {[%clk 00:20:41]} {[%emt 00:00:16]} Nf6
{[%clk 00:01:59]} {[%emt 00:00:37]} 31. Rxa5 {[%clk 00:20:07]} {[%emt
00:00:44]} Rb7 {[%clk 00:01:51]} {[%emt 00:00:18]} 32. g4 {[%clk 00:19:16]}
{[%emt 00:01:00]} Kh7 {[%clk 00:01:42]} {[%emt 00:00:20]} 33. g5 {[%clk
00:18:56]} {[%emt 00:00:29]} Ne8 {[%clk 00:00:29]} {[%emt 00:01:24]} 34. g6+
{[%clk 00:19:00]} {[%emt 00:00:06]} fxg6 {[%clk 00:00:34]} {[%emt 00:00:05]} 35.
fxg6+ {[%clk 00:19:08]} {[%emt 00:00:02]} Kh6 {[%clk 00:00:39]} {[%emt
00:00:05]} 36. Bc1# {[%emt 00:00:02]} 1-0

[Event "Snabbschacks-SM 2025"]
[Site "Norrköping, Sweden"]
[Date "2025.09.27"]
[Round "1.2"]
[White "Carlsson, Ludvig"]
[Black "Wickstrom, Carina"]
[Result "1-0"]
[TimeControl "25 min + 10 sec/move"]
[WhiteTitle "IM"]
[WhiteElo "2389"]
[BlackElo "1921"]

1. Nf3 {[%clk 00:25:13]} {[%emt 00:00:05]} d5 {[%clk 00:25:16]} {[%emt
00:00:06]} 2. d4 {[%clk 00:24:56]} {[%emt 00:00:23]} Nf6 {[%clk 00:25:21]}
{[%emt 00:00:08]} 3. c4 {[%clk 00:25:00]} {[%emt 00:00:05]} c6 {[%clk
00:25:29]} {[%emt 00:00:03]} 4. Nc3 {[%clk 00:23:53]} {[%emt 00:01:16]} dxc4
{[%clk 00:25:08]} {[%emt 00:00:32]} 5. a4 {[%clk 00:23:58]} {[%emt 00:00:04]}
Bf5 {[%clk 00:25:03]} {[%emt 00:00:16]} 6. Ne5 {[%clk 00:24:02]} {[%emt
00:00:05]} Nbd7 {[%clk 00:24:42]} {[%emt 00:00:32]} 7. Nxc4 {[%clk 00:24:07]}
{[%emt 00:00:04]} Nb6 {[%clk 00:24:09]} {[%emt 00:00:45]} 8. Ne5 {[%clk
00:23:49]} {[%emt 00:00:26]} a5 {[%clk 00:24:06]} {[%emt 00:00:14]} 9. e3
{[%clk 00:23:25]} {[%emt 00:00:32]} e6 {[%clk 00:22:54]} {[%emt 00:01:24]} 10.
g4 {[%clk 00:22:59]} {[%emt 00:00:35]} Bg6 {[%clk 00:22:28]} {[%emt 00:00:37]}
11. h4 {[%clk 00:23:00]} {[%emt 00:00:07]} Nfd5 {[%clk 00:20:01]} {[%emt
00:02:40]} 12. h5 {[%clk 00:21:51]} {[%emt 00:01:16]} Nxc3 {[%clk 00:20:01]}
{[%emt 00:00:12]} 13. bxc3 {[%clk 00:21:40]} {[%emt 00:00:20]} Be4 {[%clk
00:20:01]} {[%emt 00:00:11]} 14. f3 {[%clk 00:21:37]} {[%emt 00:00:12]} f6
{[%clk 00:19:49]} {[%emt 00:00:23]} 15. fxe4 {[%clk 00:21:00]} {[%emt
00:00:45]} fxe5 {[%clk 00:19:55]} {[%emt 00:00:05]} 16. Qb3 {[%clk 00:20:51]}
{[%emt 00:00:18]} Bd6 {[%clk 00:16:07]} {[%emt 00:03:59]} 17. Rb1 {[%clk
00:19:47]} {[%emt 00:01:13]} Bc7 {[%clk 00:16:09]} {[%emt 00:00:10]} 18. Qxe6+
{[%clk 00:19:49]} {[%emt 00:00:07]} Qe7 {[%clk 00:16:14]} {[%emt 00:00:06]} 19.
Qxe7+ {[%clk 00:19:04]} {[%emt 00:00:54]} Kxe7 {[%clk 00:16:23]} {[%emt
00:00:01]} 20. Ba3+ {[%clk 00:18:19]} {[%emt 00:00:54]} Kd7 {[%clk 00:16:00]}
{[%emt 00:00:34]} 21. g5 {[%clk 00:17:05]} {[%emt 00:01:22]} Bd8 {[%clk
00:15:23]} {[%emt 00:00:49]} 22. Bh3+ {[%clk 00:16:45]} {[%emt 00:00:29]} Kc7
{[%clk 00:15:32]} 23. O-O {[%clk 00:16:11]} {[%emt 00:00:45]} Ra7 {[%clk
00:11:43]} {[%emt 00:04:00]} 24. Bc5 {[%clk 00:14:50]} {[%emt 00:01:30]} Ra6
{[%clk 00:11:51]} {[%emt 00:00:04]} 25. Rf7+ {[%clk 00:14:35]} {[%emt
00:00:23]} Kb8 {[%clk 00:11:49]} {[%emt 00:00:13]} 26. Bf1 {[%clk 00:14:30]}
{[%emt 00:00:13]} Ka7 {[%clk 00:10:48]} {[%emt 00:01:13]} 27. Rxg7 {[%clk
00:14:03]} {[%emt 00:00:37]} Re8 {[%clk 00:10:35]} {[%emt 00:00:23]} 28. Bd3
{[%clk 00:13:53]} {[%emt 00:00:19]} Ka8 {[%clk 00:09:35]} {[%emt 00:01:11]} 29.
Bxa6 {[%clk 00:13:56]} {[%emt 00:00:06]} 1-0

[Event "Snabbschacks-SM 2025"]
[Site "Norrköping, Sweden"]
[Date "2025.09.27"]
[Round "2.8"]
[White "Dovrinder, Bengt"]
[Black "Muntean, Victor"]
[Result "0-1"]
[TimeControl "25 min + 10 sec/move"]
[WhiteElo "1988"]
[BlackElo "2151"]

1. e4 {[%clk 00:25:18]} e5 {[%clk 00:25:19]} {[%emt 00:00:02]} 2. f4 {[%clk
00:25:26]} {[%emt 00:00:02]} c6 {[%clk 00:25:23]} {[%emt 00:00:07]} 3. Nf3
{[%clk 00:24:53]} {[%emt 00:00:43]} d5 {[%clk 00:25:29]} {[%emt 00:00:05]} 4.
d4 {[%clk 00:24:21]} {[%emt 00:00:41]} exd4 {[%clk 00:23:21]} {[%emt 00:02:18]}
5. exd5 {[%clk 00:24:07]} {[%emt 00:00:25]} Qxd5 {[%clk 00:22:41]} {[%emt
00:00:50]} 6. Qxd4 {[%clk 00:24:09]} {[%emt 00:00:07]} Qxd4 {[%clk 00:22:10]}
{[%emt 00:00:41]} 7. Nxd4 {[%clk 00:24:18]} {[%emt 00:00:01]} Bc5 {[%clk
00:22:18]} {[%emt 00:00:02]} 8. Nb3 {[%clk 00:23:52]} {[%emt 00:00:35]} Bb6
{[%clk 00:22:22]} {[%emt 00:00:07]} 9. Nc3 {[%clk 00:23:42]} {[%emt 00:00:20]}
Bf5 {[%clk 00:22:12]} {[%emt 00:00:20]} 10. Bd3 {[%clk 00:23:09]} {[%emt
00:00:41]} Bxd3 {[%clk 00:22:16]} {[%emt 00:00:08]} 11. cxd3 {[%clk 00:23:16]}
{[%emt 00:00:03]} Na6 {[%clk 00:22:11]} {[%emt 00:00:15]} 12. a3 {[%clk
00:22:49]} {[%emt 00:00:28]} O-O-O {[%clk 00:22:11]} {[%emt 00:00:19]} 13. d4
{[%clk 00:22:24]} {[%emt 00:00:35]} Ne7 {[%clk 00:19:51]} {[%emt 00:02:29]} 14.
Ne2 {[%clk 00:21:21]} {[%emt 00:01:15]} Nf5 {[%clk 00:19:38]} {[%emt 00:00:22]}
15. g4 {[%clk 00:21:13]} {[%emt 00:00:17]} Nxd4 {[%clk 00:19:33]} {[%emt
00:00:16]} 16. Nbxd4 {[%clk 00:21:22]} {[%emt 00:00:01]} Bxd4 {[%clk 00:19:41]}
{[%emt 00:00:02]} 17. Nxd4 {[%clk 00:21:30]} {[%emt 00:00:02]} Rxd4 {[%clk
00:19:49]} {[%emt 00:00:02]} 18. Be3 {[%clk 00:21:30]} {[%emt 00:00:03]} Re4
{[%clk 00:19:01]} {[%emt 00:01:05]} 19. Kf2 {[%clk 00:21:32]} {[%emt 00:00:08]}
b6 {[%clk 00:18:52]} {[%emt 00:00:19]} 20. Kf3 {[%clk 00:21:19]} {[%emt
00:00:23]} Rhe8 {[%clk 00:18:58]} {[%emt 00:00:04]} 21. Rhe1 {[%clk 00:21:02]}
{[%emt 00:00:27]} Nc7 {[%clk 00:19:05]} {[%emt 00:00:03]} 22. Bf2 {[%clk
00:20:37]} {[%emt 00:00:35]} Rxe1 {[%clk 00:18:50]} {[%emt 00:00:26]} 23. Rxe1
{[%clk 00:20:45]} {[%emt 00:00:02]} Rxe1 {[%clk 00:18:58]} {[%emt 00:00:02]} 24.
Bxe1 {[%clk 00:20:53]} {[%emt 00:00:02]} Nd5 {[%clk 00:18:51]} {[%emt
00:00:16]} 25. f5 {[%clk 00:20:39]} {[%emt 00:00:25]} Kd7 {[%clk 00:18:54]}
{[%emt 00:00:07]} 26. Ke4 {[%clk 00:20:39]} {[%emt 00:00:10]} Nf6+ {[%clk
00:17:42]} {[%emt 00:01:23]} 27. Kf3 {[%clk 00:20:38]} {[%emt 00:00:11]} Kd6
{[%clk 00:17:31]} {[%emt 00:00:21]} 28. Bc3 {[%clk 00:20:38]} {[%emt 00:00:10]}
Kd5 {[%clk 00:16:47]} {[%emt 00:00:54]} 29. g5 {[%clk 00:20:31]} {[%emt
00:00:17]} Ne8 {[%clk 00:16:55]} {[%emt 00:00:01]} 30. h4 {[%clk 00:20:29]}
{[%emt 00:00:13]} g6 {[%clk 00:16:51]} {[%emt 00:00:15]} 31. Kf4 {[%clk
00:20:19]} {[%emt 00:00:19]} Nd6 {[%clk 00:16:51]} {[%emt 00:00:10]} 32. fxg6
{[%clk 00:19:29]} {[%emt 00:01:00]} fxg6 {[%clk 00:16:58]} {[%emt 00:00:02]} 33.
Bf6 {[%clk 00:18:55]} {[%emt 00:00:44]} b5 {[%clk 00:16:27]} {[%emt 00:00:42]}
34. Kg4 {[%clk 00:18:55]} {[%emt 00:00:09]} a5 {[%clk 00:16:10]} {[%emt
00:00:27]} 35. Bc3 {[%clk 00:18:37]} {[%emt 00:00:28]} Nc4 {[%clk 00:15:58]}
{[%emt 00:00:22]} 36. Kf4 {[%clk 00:17:41]} {[%emt 00:01:06]} c5 {[%clk
00:15:49]} {[%emt 00:00:19]} 37. b3 {[%clk 00:17:15]} {[%emt 00:00:25]} Nxa3
{[%clk 00:15:55]} {[%emt 00:00:16]} 38. Bxa5 {[%clk 00:17:23]} {[%emt
00:00:02]} Nc2 {[%clk 00:15:34]} {[%emt 00:00:30]} 39. Bc3 {[%clk 00:17:16]}
{[%emt 00:00:16]} Nd4 {[%clk 00:15:36]} {[%emt 00:00:09]} 40. Bb2 {[%clk
00:16:37]} {[%emt 00:00:50]} Nxb3 {[%clk 00:15:42]} {[%emt 00:00:03]} 0-1

[Event "Snabbschacks-SM 2025"]
[Site "Norrköping, Sweden"]
[Date "2025.09.27"]
[Round "4.4"]
[White "Sandhu, Ludwig"]
[Black "Lindh, Fredrik"]
[Result "0-1"]
[TimeControl "25 min + 10 sec/move"]
[BlackTitle "FM"]
[WhiteElo "1806"]
[BlackElo "2249"]

1. d4 {[%clk 00:25:17]} {[%emt 00:00:02]} d5 {[%clk 00:24:28]} {[%emt
00:00:53]} 2. c4 {[%clk 00:25:25]} {[%emt 00:00:02]} c6 {[%clk 00:24:36]}
{[%emt 00:00:02]} 3. Nc3 {[%clk 00:25:34]} {[%emt 00:00:01]} Nf6 {[%clk
00:24:45]} {[%emt 00:00:02]} 4. Nf3 {[%clk 00:25:36]} {[%emt 00:00:07]} dxc4
{[%clk 00:24:53]} {[%emt 00:00:02]} 5. a4 {[%clk 00:25:15]} {[%emt 00:00:31]}
Bf5 {[%clk 00:25:01]} {[%emt 00:00:02]} 6. e3 {[%clk 00:25:19]} {[%emt
00:00:06]} e6 {[%clk 00:25:09]} {[%emt 00:00:02]} 7. Bxc4 {[%clk 00:25:26]}
{[%emt 00:00:02]} Bb4 {[%clk 00:25:17]} {[%emt 00:00:02]} 8. O-O {[%clk
00:25:26]} {[%emt 00:00:10]} O-O {[%clk 00:25:25]} {[%emt 00:00:02]} 9. Qb3
{[%clk 00:25:07]} {[%emt 00:00:29]} Qe7 {[%clk 00:25:11]} {[%emt 00:00:24]} 10.
Re1 {[%clk 00:24:41]} {[%emt 00:00:36]} c5 {[%clk 00:23:48]} {[%emt 00:01:34]}
11. Bd2 {[%clk 00:22:28]} {[%emt 00:02:23]} Nc6 {[%clk 00:22:04]} {[%emt
00:01:55]} 12. dxc5 {[%clk 00:22:19]} {[%emt 00:00:18]} Bxc5 {[%clk 00:20:14]}
{[%emt 00:01:59]} 13. Be2 {[%clk 00:20:37]} {[%emt 00:01:51]} Rfd8 {[%clk
00:19:27]} {[%emt 00:00:58]} 14. Red1 {[%clk 00:19:59]} {[%emt 00:00:49]} Na5
{[%clk 00:13:39]} {[%emt 00:05:59]} 15. Qa2 {[%clk 00:20:07]} {[%emt 00:00:02]}
Bc2 {[%clk 00:12:54]} {[%emt 00:00:55]} 16. Rdc1 {[%clk 00:20:15]} {[%emt
00:00:02]} Bb3 {[%clk 00:13:02]} 17. Qb1 {[%clk 00:20:24]} {[%emt 00:00:01]} e5
{[%clk 00:12:55]} {[%emt 00:00:17]} 18. Ne4 {[%clk 00:19:12]} {[%emt 00:01:22]}
Bb6 {[%clk 00:09:30]} {[%emt 00:03:36]} 19. Bc3 {[%clk 00:14:21]} {[%emt
00:05:01]} Nxe4 {[%clk 00:07:10]} {[%emt 00:02:30]} 20. Qxe4 {[%clk 00:14:25]}
{[%emt 00:00:06]} Bd5 {[%clk 00:07:18]} {[%emt 00:00:02]} 21. Qg4 {[%clk
00:12:05]} {[%emt 00:02:29]} Nb3 {[%clk 00:06:26]} {[%emt 00:01:03]} 22. Nxe5
{[%clk 00:06:40]} {[%emt 00:05:34]} f6 {[%clk 00:06:12]} {[%emt 00:00:24]} 23.
Bc4 {[%clk 00:05:45]} {[%emt 00:01:06]} Nxc1 {[%clk 00:04:58]} {[%emt
00:01:24]} 24. Bxd5+ {[%clk 00:05:44]} {[%emt 00:00:11]} Rxd5 {[%clk 00:05:06]}
25. Qc4 {[%clk 00:04:55]} {[%emt 00:00:59]} Qe6 {[%clk 00:04:56]} {[%emt
00:00:21]} 26. Rxc1 {[%clk 00:03:50]} {[%emt 00:01:15]} fxe5 {[%clk 00:03:06]}
{[%emt 00:01:59]} 27. Be1 {[%clk 00:03:43]} {[%emt 00:00:18]} Rd6 {[%clk
00:03:08]} {[%emt 00:00:08]} 0-1

[Event "Snabbschacks-SM 2025"]
[Site "Norrköping, Sweden"]
[Date "2025.09.27"]
[Round "5.10"]
[White "Lind, Jan-Olov"]
[Black "Olsson, Simon"]
[Result "1/2-1/2"]
[TimeControl "25 min + 10 sec/move"]
[WhiteElo "2057"]
[BlackElo "2068"]

1. e4 {[%clk 00:25:16]} {[%emt 00:00:02]} c6 {[%clk 00:25:15]} {[%emt
00:00:06]} 2. d4 {[%clk 00:25:18]} {[%emt 00:00:08]} d5 {[%clk 00:25:24]}
{[%emt 00:00:01]} 3. exd5 {[%clk 00:25:26]} {[%emt 00:00:02]} cxd5 {[%clk
00:25:33]} {[%emt 00:00:02]} 4. c4 {[%clk 00:25:35]} Nf6 {[%clk 00:25:25]}
{[%emt 00:00:19]} 5. Nc3 {[%clk 00:25:44]} Nc6 {[%clk 00:25:22]} {[%emt
00:00:13]} 6. Nf3 {[%clk 00:25:52]} {[%emt 00:00:01]} Bg4 {[%clk 00:25:03]}
{[%emt 00:00:29]} 7. cxd5 {[%clk 00:25:59]} {[%emt 00:00:03]} Nxd5 {[%clk
00:24:57]} {[%emt 00:00:16]} 8. Bb5 {[%clk 00:26:06]} {[%emt 00:00:03]} Qa5
{[%clk 00:14:26]} {[%emt 00:10:41]} 9. O-O {[%clk 00:20:48]} {[%emt 00:05:28]}
Nxc3 {[%clk 00:14:21]} {[%emt 00:00:16]} 10. Bxc6+ {[%clk 00:20:48]} {[%emt
00:00:09]} bxc6 {[%clk 00:14:29]} {[%emt 00:00:02]} 11. bxc3 {[%clk 00:20:25]}
{[%emt 00:00:33]} e6 {[%clk 00:10:50]} {[%emt 00:03:49]} 12. Qd3 {[%clk
00:19:41]} {[%emt 00:00:55]} Bf5 {[%clk 00:09:36]} {[%emt 00:01:24]} 13. Qe3
{[%clk 00:14:50]} {[%emt 00:05:00]} Bd6 {[%clk 00:09:29]} {[%emt 00:00:18]} 14.
Nd2 {[%clk 00:11:53]} {[%emt 00:03:06]} O-O {[%clk 00:05:11]} {[%emt 00:04:29]}
15. Nc4 {[%clk 00:11:45]} {[%emt 00:00:17]} Qd5 {[%clk 00:05:14]} {[%emt
00:00:07]} 16. Nxd6 {[%clk 00:11:46]} {[%emt 00:00:09]} Qxd6 {[%clk 00:05:23]}
{[%emt 00:00:01]} 17. a4 {[%clk 00:10:41]} {[%emt 00:01:16]} Qd5 {[%clk
00:05:05]} {[%emt 00:00:27]} 18. Ba3 {[%clk 00:10:22]} {[%emt 00:00:30]} Rfb8
{[%clk 00:05:12]} {[%emt 00:00:02]} 19. Bc5 {[%clk 00:09:48]} {[%emt 00:00:43]}
Rb3 {[%clk 00:04:56]} {[%emt 00:00:27]} 20. Rfc1 {[%clk 00:08:53]} {[%emt
00:01:05]} Qe4 {[%clk 00:04:24]} {[%emt 00:00:43]} 21. Qxe4 {[%clk 00:03:41]}
{[%emt 00:05:22]} Bxe4 {[%clk 00:04:33]} {[%emt 00:00:01]} 22. a5 {[%clk
00:03:48]} {[%emt 00:00:02]} a6 {[%clk 00:04:39]} {[%emt 00:00:04]} 23. Bb6
{[%clk 00:03:35]} {[%emt 00:00:23]} Re8 {[%clk 00:02:51]} {[%emt 00:01:58]} 24.
f3 {[%clk 00:03:28]} {[%emt 00:00:17]} 1/2-1/2